bitfinex/quotes_SOLUSD_20230120
["timestamp","ask_amount","ask_price","bid_price","bid_amount"]
[1674180862593,0.96,21.48,21.462,12.9721458]
[1674180862818,0.96,21.48,21.463,34.95]
[1674180863012,0.96,21.48,21.456,10.0]
[1674180863216,0.96,21.48,21.458,4.65225165]
[1674180863422,0.96,21.48,21.46,10.0]
[1674180863636,0.96,21.48,21.461,53.87]
[1674180863866,0.96,21.48,21.461,73.87]
[1674180864901,0.96,21.479,21.461,73.87]
[1674180865107,0.96,21.478,21.461,34.95]
[1674180865320,0.96,21.477,21.46,34.95]
[1674180865531,0.96,21.477,21.456,34.96]
[1674180865736,0.96,21.477,21.453,16.9219058]
[1674180865737,0.96,21.476,21.454,34.96]
[1674180865943,0.96,21.475,21.454,34.96]
[1674180866156,0.96,21.474,21.454,34.96]
[1674180866607,0.96,21.473,21.454,34.96]
[1674180866800,0.96,21.472,21.454,34.96]
[1674180867209,0.96,21.472,21.455,0.96]
[1674180867420,10.0,21.471,21.456,35.92]
[1674180867643,10.0,21.471,21.456,34.96]
[1674180867865,10.0,21.471,21.453,34.96]
[1674180868082,1.92,21.47,21.453,34.96]
[1674180868271,1.92,21.47,21.45,12.9721458]
[1674180868272,1.92,21.47,21.451,34.97]
[1674180868489,1.92,21.47,21.452,20.0]
[1674180868705,0.96,21.47,21.453,34.96]
[1674180868912,10.0,21.471,21.454,10.0]
[1674180869125,10.0,21.471,21.455,34.96]
[1674180869337,10.0,21.471,21.456,17.0]
[1674180869535,10.0,21.471,21.457,34.96]
[1674180869863,10.0,21.471,21.458,17.0]
[1674180870082,10.0,21.471,21.459,34.95]
[1674180870293,10.0,21.471,21.46,17.0]
[1674180870689,10.0,21.471,21.461,34.95]
[1674180870900,10.0,21.471,21.462,17.0]
[1674180871341,1.92,21.47,21.454,34.96]
[1674180871542,1.92,21.47,21.452,20.0]
[1674180871543,1.92,21.47,21.453,34.96]
[1674180873126,1.92,21.47,21.454,17.0]
[1674180873448,1.92,21.47,21.453,34.96]
[1674180874684,34.94,21.469,21.446,34.97]
[1674180874893,11.92,21.468,21.436,6.24075649]
[1674180875123,10.0,21.467,21.438,12.9721458]
[1674180875451,1.92,21.466,21.439,34.48]
[1674180875627,1.92,21.466,21.44,18.92]
[1674180875837,1.92,21.466,21.441,34.58]
[1674180876054,1.92,21.466,21.442,18.92]
[1674180876258,1.92,21.466,21.443,33.31]
[1674180876580,1.92,21.466,21.437,12.9721458]
[1674180876581,1.92,21.466,21.438,33.32]
[1674180876805,1.92,21.466,21.439,20.0]
[1674180876993,1.92,21.466,21.44,30.75]
[1674180877213,1.92,21.466,21.441,20.0]
[1674180877539,1.92,21.466,21.433,597.5292446]
[1674180877540,10.0,21.464,21.442,29.43]
[1674180877770,10.0,21.464,21.435,116.571]
[1674180877771,36.87,21.463,21.436,29.44]
[1674180878065,10.0,21.462,21.436,29.44]
[1674180878251,1.92,21.461,21.433,27.74]
[1674180878461,110.3901,21.461,21.433,27.74]
[1674180878686,145.3401,21.461,21.433,27.74]
[1674180878906,10.0,21.46,21.433,27.74]
[1674180879100,1.92,21.459,21.433,27.74]
[1674180879825,116.7277,21.458,21.432,12.9721458]
[1674180880038,116.7277,21.458,21.43,117.8481]
[1674180880039,10.96,21.457,21.433,27.02]
[1674180880303,11.92,21.457,21.431,27.02]
[1674180880670,10.0,21.457,21.432,20.0]
[1674180880878,10.0,21.457,21.433,27.98]
[1674180881102,10.0,21.457,21.434,27.96]
[1674180881321,10.0,21.457,21.435,28.31]
[1674180881512,10.0,21.457,21.436,17.0]
[1674180881721,10.0,21.457,21.437,28.7]
[1674180881943,44.96,21.457,21.433,28.96]
[1674180882134,1.92,21.456,21.432,28.96]
[1674180882567,1.92,21.456,21.425,5.783073]
[1674180882568,34.96,21.455,21.428,28.98]
[1674180882787,34.96,21.455,21.426,27.45]
[1674180882788,10.0,21.453,21.426,27.45]
[1674180882991,0.96,21.452,21.426,27.45]
[1674180883204,1.92,21.452,21.426,27.45]
[1674180883610,36.88,21.452,21.426,27.45]
[1674180883817,10.0,21.451,21.427,10.0]
[1674180884065,0.96,21.45,21.428,25.83]
[1674180884259,110.3081,21.45,21.428,25.83]
[1674180884666,10.0,21.449,21.428,25.83]
[1674180884870,0.96,21.448,21.428,25.83]
[1674180885297,0.96,21.448,21.429,0.96]
[1674180885501,0.96,21.447,21.43,27.32]
[1674180885720,0.96,21.446,21.43,27.32]
[1674180886044,0.96,21.446,21.431,17.0]
[1674180886257,0.96,21.446,21.432,27.14]
[1674180886468,0.96,21.446,21.433,17.0]
[1674180886672,0.96,21.446,21.434,26.93]
[1674180886878,0.96,21.446,21.435,17.0]
[1674180887617,113.6125,21.449,21.435,17.0]
[1674180887846,113.6125,21.449,21.436,26.08]
[1674180888059,113.6125,21.449,21.437,17.0]
[1674180888261,113.6125,21.449,21.438,28.07]
[1674180888459,11.92,21.448,21.439,17.0]
[1674180890247,11.92,21.448,21.428,30.07]
[1674180890467,11.92,21.448,21.422,4.43043697]
[1674180890468,11.92,21.448,21.426,29.31]
[1674180891519,11.92,21.448,21.427,17.0]
[1674180891713,11.92,21.448,21.417,64.9593458]
[1674180891714,11.92,21.448,21.428,28.45]
[1674180891921,10.0,21.446,21.422,28.37]
[1674180892133,1.92,21.445,21.422,28.37]
[1674180893711,10.0,21.446,21.422,75.36270117]
[1674180893920,10.0,21.446,21.423,10.0]
[1674180894151,10.0,21.446,21.424,21.52]
[1674180894342,10.0,21.446,21.425,10.0]
[1674180894684,123.6125,21.449,21.426,41.77]
[1674180894886,123.6125,21.449,21.427,10.0]
[1674180895078,123.6125,21.449,21.428,44.31]
[1674180895283,123.6125,21.449,21.429,10.0]
[1674180895608,0.96,21.448,21.43,44.6]
[1674180895823,10.96,21.448,21.43,44.6]
[1674180896466,10.96,21.448,21.43,17.0]
[1674180896674,10.96,21.448,21.429,17.0]
[1674180896900,0.96,21.447,21.43,27.1]
[1674180897073,0.96,21.447,21.431,17.0]
[1674180897290,0.96,21.446,21.431,17.0]
[1674180897607,0.96,21.445,21.431,17.0]
[1674180899205,0.96,21.445,21.429,40.8]
[1674180901298,0.96,21.445,21.43,10.0]
[1674180901513,0.96,21.445,21.431,37.27]
[1674180901824,123.6125,21.449,21.432,10.0]
[1674180902043,123.6125,21.449,21.433,37.23]
[1674180902356,10.0,21.448,21.433,37.23]
[1674180903598,10.0,21.448,21.433,20.23]
[1674180903807,1.92,21.447,21.425,23.19]
[1674180904245,34.97,21.446,21.416,22.86]
[1674180904556,18.92,21.445,21.407,153.4453458]
[1674180904781,10.0,21.443,21.408,10.0]
[1674180904973,1.92,21.442,21.409,20.96]
[1674180905188,1.92,21.442,21.409,109.83261187]
[1674180905505,1.92,21.442,21.41,12.9721458]
[1674180905703,1.92,21.442,21.412,10.0]
[1674180905907,1.92,21.442,21.413,20.0]
[1674180906124,1.92,21.442,21.414,10.0]
[1674180906340,1.92,21.442,21.415,19.11]
[1674180906569,1.92,21.442,21.416,17.96]
[1674180906761,1.92,21.442,21.417,18.12]
[1674180906964,1.92,21.442,21.418,17.0]
[1674180907183,1.92,21.442,21.419,16.95]
[1674180907401,1.92,21.442,21.415,16.95]
[1674180907584,1.92,21.442,21.416,10.0]
[1674180907795,1.92,21.442,21.417,15.88]
[1674180908005,23.75576951,21.441,21.417,15.88]
[1674180908235,36.9,21.44,21.415,15.04]
[1674180908424,152.0842,21.44,21.411,46.99270117]
[1674180908634,10.0,21.438,21.416,10.0]
[1674180908859,1.92,21.437,21.417,16.42]
[1674180909284,1.92,21.437,21.418,17.0]
[1674180909502,1.92,21.437,21.42,10.0]
[1674180909689,1.92,21.437,21.421,33.34]
[1674180909901,0.96,21.437,21.421,33.34]
[1674180910213,118.0537,21.439,21.421,33.34]
[1674180910654,118.0537,21.439,21.422,10.0]
[1674180910968,118.0537,21.439,21.423,35.3]
[1674180911186,118.0537,21.439,21.424,10.0]
[1674180911370,10.0,21.446,21.425,40.09]
[1674180911578,112.2242,21.448,21.427,10.0]
[1674180911815,10.0,21.447,21.428,41.06]
[1674180912726,10.0,21.447,21.429,10.0]
[1674180912942,10.0,21.447,21.43,42.01]
[1674180913586,0.96,21.446,21.43,42.01]
[1674180913807,1.92,21.446,21.43,42.01]
[1674180914217,1.92,21.446,21.43,17.0]
[1674180914535,1.92,21.446,21.431,23.88]
[1674180914755,1.92,21.446,21.432,17.0]
[1674180919059,1.92,21.446,21.43,17.0]
[1674180919268,1.92,21.446,21.431,17.53]
[1674180919483,1.92,21.446,21.432,17.0]
[1674180920215,1.92,21.446,21.43,17.0]
[1674180920397,1.92,21.446,21.431,16.65]
[1674180920609,1.92,21.446,21.432,17.0]
[1674180921057,0.96,21.446,21.432,17.0]
[1674180922397,0.96,21.445,21.432,17.0]
[1674180922626,0.96,21.444,21.432,17.0]
[1674180922840,0.96,21.443,21.432,17.0]
[1674180923050,0.96,21.442,21.432,17.0]
[1674180923258,0.96,21.441,21.432,17.0]
[1674180923574,0.96,21.44,21.432,17.0]
[1674180923767,0.96,21.439,21.432,17.0]
[1674180923978,0.96,21.438,21.432,17.0]
[1674180925566,0.96,21.438,21.427,13.86]
[1674180925770,0.96,21.437,21.422,19.67]
[1674180925978,0.96,21.437,21.418,10.0]
[1674180926198,0.96,21.436,21.419,19.63]
[1674180926521,0.96,21.435,21.42,10.0]
[1674180926831,0.96,21.434,21.421,19.64]
[1674180927032,0.96,21.433,21.421,19.64]
[1674180927233,0.96,21.433,21.419,20.26]
[1674180927443,0.96,21.432,21.419,20.26]
[1674180927658,0.96,21.431,21.419,20.26]
[1674180927879,0.96,21.43,21.419,20.26]
[1674180928499,0.96,21.43,21.42,17.0]
[1674180928711,0.96,21.43,21.421,22.06]
[1674180929037,0.96,21.43,21.422,17.0]
[1674180929352,0.96,21.431,21.423,22.79]
[1674180929567,10.0,21.436,21.424,17.0]
[1674180929761,1.92,21.435,21.424,17.0]
[1674180930722,0.96,21.435,21.424,17.0]
[1674180930909,0.96,21.435,21.425,24.99]
[1674180931122,0.96,21.435,21.426,17.0]
[1674180932508,0.96,21.435,21.424,42.5]
[1674180933352,0.96,21.435,21.424,17.0]
[1674180933560,0.96,21.435,21.423,17.0]
[1674180933772,0.96,21.435,21.424,27.65]
[1674180933978,0.96,21.435,21.425,17.0]
[1674180934718,0.96,21.435,21.423,17.0]
[1674180934928,0.96,21.435,21.424,27.93]
[1674180935120,0.96,21.435,21.425,17.0]
[1674180935558,44.97,21.451,21.426,29.17]
[1674180935772,122.3413,21.451,21.426,92.25868463]
[1674180935953,122.3413,21.451,21.427,63.99270117]
[1674180936170,122.3413,21.451,21.428,29.73]
[1674180936394,10.0,21.449,21.429,27.0]
[1674180936601,10.0,21.449,21.43,31.27]
[1674180936814,10.0,21.449,21.431,17.0]
[1674180937007,122.3413,21.451,21.433,10.0]
[1674180937222,122.3413,21.451,21.434,49.77]
[1674180937456,122.3413,21.451,21.435,10.0]
[1674180937647,122.3413,21.451,21.436,17.0]
[1674180937987,10.96,21.449,21.436,17.0]
[1674180938198,0.96,21.448,21.435,17.0]
[1674180938503,0.96,21.447,21.435,17.0]
[1674180938701,0.96,21.446,21.435,17.0]
[1674180939123,0.96,21.445,21.435,17.0]
[1674180940176,0.96,21.444,21.435,17.0]
[1674180940925,0.96,21.443,21.435,17.0]
[1674180941238,0.96,21.442,21.435,17.0]
[1674180941657,0.96,21.442,21.433,17.0]
[1674180942398,0.96,21.443,21.433,17.0]
[1674180942589,10.0,21.449,21.434,34.99]
[1674180942800,1.92,21.448,21.435,17.0]
[1674180943652,1.92,21.448,21.434,10.0]
[1674180943868,1.92,21.448,21.435,17.0]
[1674180944052,1.92,21.448,21.436,10.0]
[1674180944258,1.92,21.448,21.437,17.0]
[1674180945856,109.3481,21.45,21.437,17.0]
[1674180946068,109.3481,21.45,21.439,10.0]
[1674180946260,109.3481,21.45,21.441,10.0]
[1674180946701,109.3481,21.45,21.442,17.0]
[1674180947117,0.96,21.449,21.442,17.0]
[1674180947335,109.3481,21.45,21.442,17.0]
[1674180947546,10.0,21.46,21.442,17.0]
[1674180947752,125.4194,21.46,21.443,10.0]
[1674180948070,125.4194,21.46,21.444,17.0]
[1674180948699,0.96,21.456,21.444,17.0]
[1674180949009,0.96,21.455,21.444,17.0]
[1674180949217,0.96,21.454,21.444,17.0]
[1674180949430,0.96,21.453,21.444,17.0]
[1674180949646,0.96,21.452,21.444,17.0]
[1674180949850,125.4194,21.46,21.444,17.0]
[1674180950056,125.4194,21.46,21.445,10.0]
[1674180950380,115.4194,21.46,21.447,10.0]
[1674180950692,10.0,21.47,21.447,10.0]
[1674180950693,34.94,21.469,21.448,17.0]
[1674180950903,10.0,21.47,21.449,34.97]
[1674180951216,114.6994,21.468,21.451,10.0]
[1674180951418,114.6994,21.468,21.452,51.96]
[1674180951636,114.6994,21.468,21.453,10.0]
[1674180951854,114.6994,21.468,21.454,17.0]
[1674180952905,114.6994,21.468,21.453,17.0]
[1674180953324,10.0,21.467,21.453,17.0]
[1674180954060,1.92,21.466,21.452,51.96]
[1674180954807,1.92,21.466,21.446,34.97]
[1674180955333,1.92,21.466,21.445,34.98]
[1674180955740,1.92,21.466,21.445,47.9521458]
[1674180956160,1.92,21.466,21.446,17.0]
[1674180956366,1.92,21.466,21.445,47.9521458]
[1674180956581,1.92,21.466,21.446,12.9721458]
[1674180956804,18.92,21.466,21.44,34.98]
[1674180956994,10.0,21.464,21.44,47.9521458]
[1674180957204,10.0,21.464,21.437,34.99]
[1674180957205,36.87,21.463,21.437,34.99]
[1674180957435,17.0,21.462,21.436,34.99]
[1674180957646,36.87,21.461,21.436,47.9621458]
[1674180957837,145.0067,21.461,21.438,25.9442916]
[1674180958046,10.0,21.46,21.44,10.0]
[1674180958255,1.92,21.459,21.44,10.0]
[1674180958478,1.92,21.459,21.441,29.9721458]
[1674180960369,10.0,21.46,21.441,29.9721458]
[1674180960586,108.1367,21.461,21.442,46.0521458]
[1674180960908,10.0,21.46,21.443,17.0]
[1674180961104,10.0,21.46,21.444,32.79]
[1674180961426,10.0,21.46,21.445,17.0]
[1674180962163,0.96,21.459,21.445,17.0]
[1674180962475,10.0,21.46,21.445,29.9721458]
[1674180962666,10.0,21.46,21.446,32.34]
[1674180962881,10.0,21.46,21.447,17.0]
[1674180963631,1.92,21.459,21.447,17.0]
[1674180964693,1.92,21.459,21.446,17.0]
[1674180965115,108.1367,21.461,21.447,10.0]
[1674180965324,108.1367,21.461,21.448,48.09]
[1674180965539,108.1367,21.461,21.449,10.0]
[1674180965867,108.1367,21.461,21.45,17.0]
[1674180966263,108.1367,21.461,21.449,17.0]
[1674180966685,1.92,21.46,21.448,12.9721458]
[1674180966895,11.92,21.46,21.442,34.98]
[1674180967121,11.92,21.46,21.443,12.9721458]
[1674180967331,11.92,21.46,21.444,34.98]
[1674180968175,11.92,21.46,21.445,17.0]
[1674180968385,108.1367,21.461,21.445,12.9721458]
[1674180968580,108.1367,21.461,21.446,17.0]
[1674180969118,10.0,21.46,21.446,17.0]
[1674180969742,1.92,21.459,21.446,17.0]
[1674180973132,1.92,21.459,21.442,34.98]
[1674180973446,1.92,21.459,21.444,13.69272662]
[1674180973759,1.92,21.459,21.442,34.98]
[1674180973960,1.92,21.459,21.443,10.0]
[1674180974168,1.92,21.459,21.444,33.04]
[1674180974368,0.96,21.459,21.444,46.73272662]
[1674180974583,0.96,21.459,21.446,10.0]
[1674180974794,108.1367,21.461,21.447,17.0]
[1674180975204,108.1367,21.461,21.448,32.02]
[1674180975421,108.1367,21.461,21.449,17.0]
[1674180975752,108.1367,21.461,21.45,34.13]
[1674180975946,108.1367,21.461,21.451,17.0]
[1674180976789,10.0,21.464,21.451,17.0]
[1674180977106,206.48182676,21.51,21.451,17.0]
[1674180977107,10.0,21.471,21.452,10.0]
[1674180977318,34.92,21.482,21.453,51.96]
[1674180977527,148.261,21.482,21.454,0.96]
[1674180977846,10.0,21.481,21.456,10.0]
[1674180978055,10.0,21.481,21.457,53.88]
[1674180978470,10.0,21.481,21.458,10.0]
[1674180978683,10.0,21.481,21.459,51.95]
[1674180980371,0.96,21.471,21.459,51.95]
[1674180980580,0.96,21.47,21.459,51.95]
[1674180982367,10.0,21.481,21.459,51.95]
[1674180982579,10.0,21.481,21.46,10.0]
[1674180982781,10.0,21.481,21.461,17.0]
[1674180983948,10.0,21.481,21.463,10.0]
[1674180984139,10.0,21.481,21.464,17.0]
[1674180985094,0.96,21.48,21.462,17.0]
[1674180985726,0.96,21.479,21.462,17.0]
[1674180985953,0.96,21.478,21.462,17.0]
[1674180986164,0.96,21.477,21.462,17.0]
[1674180986373,0.96,21.476,21.462,17.0]
[1674180986587,0.96,21.476,21.463,34.95]
[1674180986776,0.96,21.476,21.464,17.0]
[1674180987946,0.96,21.476,21.462,17.0]
[1674180988155,0.96,21.476,21.463,34.95]
[1674180988372,0.96,21.476,21.464,17.0]
[1674180988582,0.96,21.475,21.464,17.0]
[1674180988795,0.96,21.474,21.462,17.0]
[1674180989108,0.96,21.473,21.462,17.0]
[1674180989423,10.0,21.481,21.462,17.0]
[1674180989621,1.92,21.48,21.462,17.0]
[1674180989832,1.92,21.48,21.461,34.95]
[1674180990040,1.92,21.48,21.457,10.0]
[1674180990372,1.92,21.48,21.458,34.96]
[1674180990581,1.92,21.48,21.459,10.0]
[1674180990896,1.92,21.48,21.46,34.95]
[1674180991099,1.92,21.48,21.461,17.0]
[1674180991315,1.92,21.48,21.462,34.95]
[1674180991508,1.92,21.48,21.463,17.0]
[1674180991942,1.92,21.48,21.461,17.0]
[1674180992262,10.0,21.481,21.462,34.95]
[1674180992465,123.341,21.482,21.463,18.92]
[1674180992670,123.341,21.482,21.464,34.95]
[1674180992876,10.0,21.481,21.465,17.0]
[1674180993618,0.96,21.48,21.465,17.0]
[1674180994255,0.96,21.479,21.465,17.0]
[1674180996352,0.96,21.479,21.466,34.94]
[1674180996568,10.0,21.481,21.467,17.0]
[1674180996963,10.0,21.481,21.465,17.0]
[1674180997174,10.0,21.481,21.466,36.86]
[1674180997387,10.0,21.481,21.467,17.0]
[1674180998040,0.96,21.48,21.467,17.0]
[1674180998574,1.92,21.48,21.467,17.0]
[1674180998786,1.92,21.48,21.465,17.0]
[1674180998993,10.0,21.481,21.466,10.96]
[1674180999210,10.0,21.481,21.467,17.96]
[1674180999518,34.9,21.493,21.468,0.96]
[1674180999724,10.0,21.491,21.469,35.9]
[1674180999922,109.4823,21.492,21.47,22.90809639]
[1674181000130,109.4823,21.492,21.471,35.89]
[1674181000353,10.0,21.491,21.472,10.0]
[1674181000677,10.0,21.491,21.473,51.93]
[1674181001088,0.96,21.49,21.473,51.93]
[1674181001304,1.92,21.49,21.473,51.93]
[1674181001812,1.92,21.49,21.473,17.0]
[1674181002551,10.0,21.491,21.473,17.0]
[1674181003819,1.92,21.49,21.473,17.0]
[1674181004351,1.92,21.49,21.467,34.94]
[1674181004553,1.92,21.49,21.465,57.15760188]
[1674181004554,1.92,21.49,21.466,34.18]
[1674181004975,10.0,21.489,21.466,34.18]
[1674181005182,1.92,21.488,21.465,32.96]
[1674181005609,1.92,21.488,21.466,17.0]
[1674181005813,1.92,21.488,21.467,30.26]
[1674181006032,1.92,21.488,21.468,17.0]
[1674181006248,1.92,21.488,21.469,28.86]
[1674181006447,1.92,21.488,21.47,17.0]
[1674181007072,10.0,21.489,21.47,17.0]
[1674181007278,10.0,21.489,21.471,26.26]
[1674181007498,10.0,21.489,21.472,17.0]
[1674181007713,10.0,21.489,21.473,25.69]
[1674181007920,10.0,21.489,21.474,17.0]
[1674181008127,10.0,21.489,21.474,13.69272662]
[1674181008777,0.96,21.488,21.468,13.69272662]
[1674181008980,0.96,21.488,21.469,25.28]
[1674181009309,0.96,21.487,21.469,25.28]
[1674181009509,0.96,21.486,21.47,13.69272662]
[1674181009722,0.96,21.485,21.47,13.69272662]
[1674181010036,0.96,21.484,21.47,13.69272662]
[1674181010247,0.96,21.483,21.47,13.69272662]
[1674181010446,0.96,21.482,21.47,13.69272662]
[1674181010659,0.96,21.481,21.47,13.69272662]
[1674181010967,0.96,21.48,21.47,13.69272662]
[1674181011180,0.96,21.479,21.471,17.0]
[1674181011588,0.96,21.479,21.472,13.69272662]
[1674181011795,114.8601,21.483,21.473,39.81]
[1674181012025,10.0,21.491,21.474,10.96]
[1674181012230,10.0,21.491,21.475,40.95]
[1674181012433,10.0,21.491,21.475,54.64272662]
[1674181012653,10.0,21.491,21.476,13.69272662]
[1674181012864,10.0,21.491,21.477,42.0]
[1674181013294,10.0,21.491,21.478,13.69272662]
[1674181013484,10.0,21.491,21.479,43.52]
[1674181013910,10.0,21.491,21.48,13.69272662]
[1674181014131,10.0,21.491,21.481,17.0]
[1674181014535,10.0,21.491,21.482,13.69272662]
[1674181014753,10.0,21.491,21.483,17.0]
[1674181015180,1.92,21.49,21.483,30.69272662]
[1674181015608,10.0,21.491,21.483,17.0]
[1674181015822,34.88,21.504,21.484,13.69272662]
[1674181016010,10.0,21.492,21.485,17.0]
[1674181016777,10.0,21.503,21.485,30.69272662]
[1674181016778,115.0905,21.502,21.485,30.69272662]
[1674181017270,10.96,21.501,21.485,30.69272662]
[1674181017479,115.0905,21.502,21.485,30.69272662]
[1674181017705,115.0905,21.502,21.486,36.19]
[1674181017917,10.0,21.501,21.487,17.0]
[1674181018126,10.0,21.501,21.488,34.91]
[1674181018329,10.0,21.501,21.489,17.0]
[1674181018542,10.0,21.501,21.49,34.9]
[1674181018752,10.0,21.501,21.491,17.0]
[1674181018980,10.0,21.504,21.491,17.0]
[1674181019162,10.0,21.504,21.491,30.69272662]
[1674181019923,10.0,21.504,21.492,13.69272662]
[1674181020108,10.0,21.504,21.493,17.0]
[1674181020320,10.0,21.512,21.494,44.9]
[1674181020537,10.0,21.512,21.495,17.0]
[1674181020740,10.0,21.512,21.496,34.89]
[1674181020958,10.0,21.512,21.497,17.0]
[1674181021181,10.0,21.512,21.498,34.89]
[1674181021490,10.0,21.512,21.499,17.0]
[1674181021704,10.0,21.512,21.499,30.69272662]
[1674181022309,1.92,21.511,21.499,30.69272662]
[1674181022646,0.96,21.511,21.499,30.69272662]
[1674181023711,10.0,21.512,21.499,30.69272662]
[1674181024937,10.0,21.512,21.5,34.89]
[1674181025153,10.0,21.512,21.501,17.0]
[1674181025568,115.0905,21.514,21.501,17.0]
[1674181025794,24.13807167,21.548,21.502,34.88]
[1674181026006,110.4486,21.525,21.503,17.0]
[1674181026222,110.4486,21.525,21.504,44.88]
[1674181026223,10.0,21.524,21.504,44.88]
[1674181026532,10.0,21.524,21.505,17.0]
[1674181026849,10.0,21.524,21.506,48.57272662]
[1674181027067,10.0,21.524,21.507,17.0]
[1674181027280,10.0,21.524,21.508,34.87]
[1674181027592,10.0,21.524,21.509,17.0]
[1674181028113,10.0,21.524,21.508,17.0]
[1674181028114,1.92,21.523,21.508,17.0]
[1674181028841,1.92,21.523,21.506,13.69272662]
[1674181028842,1.92,21.523,21.507,51.88]
[1674181029053,36.77,21.523,21.501,34.89]
[1674181029265,10.0,21.522,21.501,15.06028533]
[1674181029580,1.92,21.521,21.501,15.06028533]
[1674181030108,1.92,21.521,21.502,34.88]
[1674181030732,1.92,21.521,21.504,10.0]
[1674181030954,1.92,21.521,21.505,49.94]
[1674181031161,1.92,21.521,21.505,65.00028533]
[1674181031349,10.0,21.522,21.506,15.06028533]
[1674181031559,10.0,21.524,21.506,15.06028533]
[1674181031560,82.7996,21.525,21.507,49.53]
[1674181031796,10.0,21.524,21.507,49.53]
[1674181031982,10.0,21.524,21.507,64.59028533]
[1674181032525,0.96,21.523,21.507,64.59028533]
[1674181032839,1.92,21.522,21.507,64.59028533]
[1674181033662,8.46,21.524,21.507,64.59028533]
[1674181034606,82.7996,21.525,21.507,64.59028533]
[1674181035041,10.0,21.524,21.507,64.59028533]
[1674181035890,7.5,21.524,21.508,15.06028533]
[1674181036094,7.5,21.524,21.509,30.65]
[1674181036299,7.5,21.524,21.509,47.65]
[1674181036822,7.5,21.524,21.504,31.27]
[1674181037031,34.85,21.523,21.498,30.64]
[1674181037246,10.0,21.522,21.498,45.70028533]
[1674181037568,1.92,21.521,21.498,45.70028533]
[1674181038204,10.0,21.52,21.498,45.70028533]
[1674181038416,18.92,21.519,21.498,30.64]
[1674181038640,54.86,21.518,21.485,134.8962]